[Event "RUS-chT Premier 2019"]
[Site "Sochi"]
[Date "2019.05.10"]
[Round "9.30"]
[White "Kryakvin, Dmitry"]
[Black "Goganov, Aleksey"]
[Result "1-0"]
[ECO "B13"]
[WhiteElo "2588"]
[BlackElo "2570"]
[Annotator "ChessBase"]
[PlyCount "90"]
[EventDate "2019.05.01"]
[EventType "team-tourn"]
[EventCountry "RUS"]
[SourceTitle "playchess.com"]
[Source "ChessBase"]
[SourceQuality "1"]
[TimeControl "40/5400+30:1800+30"]

1. c4 {[%emt 0:00:00]} c6 {[%emt 0:00:00]} 2. e4 {[%emt 0:01:46]} d5 {[%emt 0:00:00]} 3. exd5 {[%emt 0:00:05]} cxd5 {[%emt 0:00:00]} 4. d4 {[%emt 0:00:05]} Nf6 {[%emt 0:00:00]} 5. Nc3 {[%emt 0:00:12]} Nc6 {[%emt 0:00:06]} 6. Bg5 {[%emt 0:00:14]} Be6 {[%emt 0:00:24]} 7. Bxf6 {[%emt 0:10:01]} exf6 {[%emt 0:00:10]} 8. c5 {[%emt 0:00:04]} g6 {[%emt 0:01:58]} 9. Bb5 {[%emt 0:04:42]} Bg7 {[%emt 0:08:16]} 10. Nge2 {[%emt 0:01:01]} O-O {[%emt 0:00:13]} 11. O-O {[%emt 0:00:06]} Qc7 {[%emt 0:06:53]} 12. Qd2 {[%emt 0:01:26]} a5 {[%emt 0:16:01]} 13. Rac1 {[%emt 0:04:25]} f5 {[%emt 0:03:27]} 14. Ba4 {[%emt 0:03:34]} Qe7 {[%emt 0:21:56]} 15. Nb5 {[%emt 0:03:32]} Qh4 {[%emt 0:03:53]} 16. g3 {[%emt 0:03:02]} Qf6 {[%emt 0:06:17]} 17. Rc3 {[%emt 0:06:18]} g5 {[%emt 0:14:06]} 18. f4 {[%emt 0:02:27]} gxf4 {[%emt 0:01:00]} 19. gxf4 {[%emt 0:04:08]} Rae8 {[%emt 0:04:40]} 20. Rg3 {[%emt 0:07:32]} Bd7 {[%emt 0:00:41]} 21. Nec3 {[%emt 0:09:59]} Be6 {[%emt 0:02:22]} 22. Kh1 {[%emt 0:01:01]} Ne7 {[%emt 0:00:49]} 23. Bb3 {[%emt 0:04:34]} Rd8 {[%emt 0:02:22]} 24. Qg2 {[%emt 0:03:35]} Kh8 {[%emt 0:00:16]} 25. Qf3 {[%emt 0:01:43]} Bd7 {[%emt 0:01:24]} 26. Rfg1 {[%emt 0:02:37]} Ng6 {[%emt 0:03:33]} 27. Bxd5 {[%emt 0:09:37]} Bc6 {[%emt 0:00:07]} 28. Nd6 {[%emt 0:05:24]} Rxd6 {[%emt 0:00:03]} 29. cxd6 {[%emt 0:00:19]} Qxd6 {[%emt 0:00:03]} 30. Bxc6 {[%emt 0:00:33]} bxc6 {[%emt 0:00:03]} 31. d5 {[%emt 0:01:19]} cxd5 {[%emt 0:00:11]} 32. Qxd5 {[%emt 0:00:45]} Qxf4 {[%emt 0:00:05]} 33. Qxa5 {[%emt 0:02:29]} Rb8 {[%emt 0:01:22]} 34. Qa4 {[%emt 0:00:35]} Qf2 {[%emt 0:01:15]} 35. R3g2 {[%emt 0:00:36]} Qf3 {[%emt 0:00:12]} 36. Qd1 {[%emt 0:00:22]} Qc6 {[%emt 0:01:09]} 37. Qd5 {[%emt 0:00:34]} Qf6 {[%emt 0:00:02]} 38. Rf2 {[%emt 0:01:55]} f4 {[%emt 0:00:13]} 39. Ne4 {[%emt 0:00:39]} Qd4 {[%emt 0:00:09]} 40. Rd1 {[%emt 0:00:00]} Qxd5 {[%emt 0:00:00]} 41. Rxd5 {[%emt 0:00:41]} Bxb2 {[%emt 0:02:32]} 42. Nd6 {[%emt 0:01:55]} Bf6 {[%emt 0:06:15]} 43. Rb5 {[%emt 0:01:21]} Ra8 {[%emt 0:01:29]} 44. Rc2 {[%emt 0:04:19]} Ra6 {[%emt 0:02:26]} 45. Rc8+ {[%emt 0:00:41]} Kg7 {[%emt 0:00:06]} 1-0